bitfinex/quotes_BTCUSD_20250522
["timestamp","ask_amount","ask_price","bid_price","bid_amount"]
[1747881512872,1.1642259,110940.0,110930.0,0.02504966]
[1747881513126,1.1491259,110940.0,110930.0,0.02504966]
[1747881513700,0.4948859,110940.0,110930.0,0.02504966]
[1747881513920,1.1490859,110940.0,110930.0,0.02504966]
[1747881514139,1.14007219,110940.0,110930.0,0.02504966]
[1747881514439,1.14007219,110940.0,110930.0,0.01846146]
[1747881514625,1.14007219,110940.0,110930.0,0.00392061]
[1747881514780,1.14207219,110940.0,110930.0,0.00392061]
[1747881515411,1.14007219,110940.0,110930.0,0.00392061]
[1747881515604,1.14207219,110940.0,110930.0,0.00392061]
[1747881515776,1.14207219,110940.0,110930.0,0.41212061]
[1747881516988,1.15847219,110940.0,110930.0,0.41212061]
[1747881520550,1.15847219,110940.0,110930.0,0.00392061]
[1747881520812,0.96918069,110940.0,110930.0,0.00392061]
[1747881521002,0.29858069,110940.0,110930.0,0.64529114]
[1747881521200,0.95270069,110940.0,110930.0,0.64529114]
[1747881521356,0.95270069,110940.0,110930.0,0.55125757]
[1747881521996,0.95070069,110940.0,110930.0,0.55125757]
[1747881522667,0.95070069,110940.0,110930.0,0.55225757]
[1747881522971,0.95070069,110940.0,110930.0,0.55125757]
[1747881523402,0.68030069,110940.0,110930.0,0.64629114]
[1747881523528,0.95070069,110940.0,110930.0,0.64629114]
[1747881524138,0.29658069,110940.0,110930.0,0.64629114]
[1747881524334,0.56698069,110940.0,110930.0,0.65997821]
[1747881524932,0.56698069,110940.0,110930.0,0.97882382]
[1747881525145,0.29658069,110940.0,110930.0,1.01162903]
[1747881525352,0.29658069,110940.0,110930.0,1.28402903]
[1747881525551,0.29658069,110940.0,110930.0,1.31306903]
[1747881527145,0.29658069,110940.0,110930.0,1.04266903]
[1747881527347,0.29658069,110940.0,110930.0,1.31302903]
[1747881528594,0.22158069,110940.0,110930.0,1.28022382]
[1747881528796,0.22158069,110940.0,110930.0,1.25318382]
[1747881529406,0.22158069,110940.0,110930.0,1.28598903]
[1747881529743,0.22158069,110940.0,110930.0,0.98282382]
[1747881529945,0.22158069,110940.0,110930.0,1.25318382]
[1747881530139,0.22158069,110940.0,110930.0,0.98282382]
[1747881530352,0.22158069,110940.0,110930.0,1.28346546]
[1747881530530,0.18189771,110940.0,110930.0,2.25520546]
[1747881530702,0.16629771,110940.0,110930.0,1.78304709]
[1747881530908,0.16629771,110940.0,110930.0,0.7233007]
[1747881531113,0.16629771,110940.0,110930.0,1.25318382]
[1747881531292,0.16629771,110940.0,110930.0,1.28346546]
[1747881531475,0.16629771,110940.0,110930.0,2.20140646]
[1747881531674,0.16629771,110940.0,110930.0,2.19422109]
[1747881531918,0.16629771,110940.0,110930.0,1.46093409]
[1747881532132,0.16629771,110940.0,110930.0,1.50373882]
[1747881532324,0.16629771,110940.0,110930.0,1.53402046]
[1747881532523,0.16629771,110940.0,110930.0,1.26366046]
[1747881532731,0.16629771,110940.0,110930.0,1.24816046]
[1747881533075,0.16629771,110940.0,110930.0,0.61278297]
[1747881533292,0.16629771,110940.0,110930.0,0.62732382]
[1747881533500,0.16629771,110940.0,110930.0,0.96732382]
[1747881533713,0.16629771,110940.0,110930.0,0.98342382]
[1747881533905,0.16629771,110940.0,110930.0,0.96732382]
[1747881535374,0.16629771,110940.0,110930.0,0.67751906]
[1747881535578,0.16629771,110940.0,110930.0,0.96732382]
[1747881535775,0.16629771,110940.0,110930.0,0.67751906]
[1747881535980,0.16629771,110940.0,110930.0,0.96732382]
[1747881540354,0.45311771,110940.0,110930.0,0.67751906]
[1747881540720,0.45311771,110940.0,110930.0,0.66297821]
[1747881540926,0.45311771,110940.0,110930.0,0.32297821]
[1747881541066,0.46213094,110940.0,110930.0,0.32297821]
[1747881541271,0.66043542,110940.0,110930.0,0.64494973]
[1747881541448,0.6694497,110940.0,110930.0,0.29126258]
[1747881541653,0.6694497,110940.0,110930.0,0.30027703]
[1747881541856,0.6694497,110940.0,110930.0,0.54624346]
[1747881542118,0.6694497,110940.0,110930.0,0.20624346]
[1747881542292,0.65142284,110940.0,110930.0,0.18821448]
[1747881542668,0.65142284,110940.0,110930.0,0.52821448]
[1747881542884,0.65142284,110940.0,110930.0,0.5462437]
[1747881543073,0.65142284,110940.0,110930.0,0.54624378]
[1747881543288,0.64240921,110940.0,110930.0,0.54624378]
[1747881543550,0.65142284,110940.0,110930.0,0.56427259]
[1747881543765,0.65142284,110940.0,110930.0,0.56427276]
[1747881543974,0.63339533,110940.0,110930.0,0.00792061]
[1747881544856,1.04503631,110940.0,110930.0,0.20624362]
[1747881545058,1.04503631,110940.0,110930.0,0.0169353]
[1747881545300,1.04503631,110940.0,110930.0,0.00792061]
[1747881545497,1.04503631,110940.0,110930.0,0.0169353]
[1747881545657,1.04503631,110940.0,110930.0,0.00792061]
[1747881545861,1.03602284,110940.0,110930.0,0.00792061]
[1747881546949,1.04507615,110940.0,110930.0,0.20624362]
[1747881547156,1.04507615,110940.0,110930.0,0.00792061]
[1747881547342,1.03606276,110940.0,110930.0,0.00792061]
[1747881547900,0.20082498,110940.0,110930.0,0.19722901]
[1747881548101,1.04511606,110940.0,110930.0,0.19722901]
[1747881548322,1.03610267,110940.0,110930.0,0.19722909]
[1747881548528,1.03610267,110940.0,110930.0,0.00792061]
[1747881548734,1.03610267,110940.0,110930.0,0.19722901]
[1747881549011,1.01807533,110940.0,110930.0,0.00792061]
[1747881549542,1.01807533,110940.0,110930.0,0.0169353]
[1747881549864,1.01807533,110940.0,110930.0,0.21525814]
[1747881549865,1.03610268,110940.0,110930.0,0.21525814]
[1747881550090,1.02708913,110940.0,110930.0,0.00792061]
[1747881552967,1.56020208,110940.0,110930.0,0.00792061]
[1747881553289,0.00901737,110890.0,110880.0,0.41288909]
[1747881553516,0.00901737,110890.0,110880.0,0.52942131]
[1747881553517,0.45973628,110890.0,110880.0,0.52942131]
[1747881553726,0.48535422,110890.0,110880.0,8.945e-05]
[1747881555058,0.47733669,110890.0,110880.0,8.945e-05]
[1747881556115,0.47733669,110890.0,110880.0,0.00308945]
[1747881556516,0.47733669,110890.0,110880.0,8.945e-05]
[1747881556710,0.47933669,110890.0,110880.0,8.945e-05]
[1747881559152,0.46933669,110890.0,110880.0,8.945e-05]
[1747881560613,0.56337026,110890.0,110880.0,8.945e-05]
[1747881562122,0.86325225,110890.0,110880.0,8.945e-05]
[1747881562675,0.57337026,110890.0,110880.0,8.945e-05]
[1747881563100,0.57037026,110890.0,110880.0,8.945e-05]
[1747881563383,0.96441026,110890.0,110880.0,8.945e-05]
[1747881564762,0.30801026,110890.0,110880.0,8.945e-05]
[1747881564924,0.96449026,110890.0,110880.0,8.945e-05]
[1747881565868,0.30801026,110890.0,110880.0,8.945e-05]
[1747881566061,0.87045669,110890.0,110880.0,8.945e-05]
[1747881566273,0.21397669,110890.0,110880.0,8.945e-05]
[1747881566478,0.87045669,110890.0,110880.0,8.945e-05]
[1747881566648,0.21397669,110890.0,110880.0,8.945e-05]
[1747881566849,0.87045669,110890.0,110880.0,8.945e-05]
[1747881567054,0.59993669,110890.0,110880.0,8.945e-05]
[1747881567279,0.87045669,110890.0,110880.0,8.945e-05]
[1747881568675,0.40297729,110890.0,110880.0,0.20751991]
[1747881568851,0.03505244,110890.0,110880.0,0.54751991]
[1747881569053,0.69153244,110890.0,110880.0,0.54751991]
[1747881569612,0.69655022,110890.0,110880.0,0.54751991]
[1747881569893,0.69955022,110890.0,110880.0,0.54751991]
[1747881570052,0.69555022,110890.0,110880.0,0.54751991]
[1747881570398,0.42703022,110890.0,110880.0,0.54751991]
[1747881570598,0.69755022,110890.0,110880.0,0.54751991]
[1747881570961,0.69755022,110890.0,110880.0,0.34008945]
[1747881570962,0.89450913,110890.0,110880.0,0.34008945]
[1747881571244,0.87647439,110890.0,110880.0,0.34008945]
[1747881572208,0.21999439,110890.0,110880.0,0.34008945]
[1747881572412,0.87647439,110890.0,110880.0,0.34008945]
[1747881572715,0.21999439,110890.0,110880.0,0.34008945]
[1747881572919,0.87647439,110890.0,110880.0,0.34008945]
[1747881574006,1.06454153,110890.0,110880.0,8.945e-05]
[1747881574398,1.36442352,110890.0,110880.0,8.945e-05]
[1747881574598,0.70794352,110890.0,110880.0,8.945e-05]
[1747881574810,1.43750624,110890.0,110880.0,8.945e-05]
[1747881576785,0.98050796,110890.0,110880.0,8.945e-05]
[1747881577816,1.19529708,110890.0,110880.0,8.945e-05]
[1747881578598,1.19533708,110890.0,110880.0,8.945e-05]
[1747881579425,0.00901981,110860.0,110850.0,0.55650814]
[1747881579627,0.84598753,110860.0,110850.0,0.5570062]
[1747881580163,0.86402789,110860.0,110850.0,0.5570062]
[1747881580335,0.85500808,110860.0,110850.0,0.34049806]
[1747881580539,0.85500808,110860.0,110850.0,0.34149806]
[1747881580944,0.85500808,110860.0,110850.0,0.53294316]
[1747881581190,0.85500808,110860.0,110850.0,0.55098506]
[1747881581731,0.85500808,110860.0,110850.0,0.55098514]
[1747881582318,0.86402756,110860.0,110850.0,0.5690268]
[1747881582542,0.87304794,110860.0,110850.0,0.56000601]
[1747881582919,0.87304794,110860.0,110850.0,0.5690268]
[1747881583169,0.87304794,110860.0,110850.0,0.56000601]
[1747881583315,0.86402813,110860.0,110850.0,0.56000601]
[1747881583750,0.85500824,110860.0,110850.0,0.54196419]
[1747881583985,0.85500824,110860.0,110850.0,0.56000601]
[1747881584333,0.85500824,110860.0,110850.0,0.5690268]
[1747881584557,0.67460003,110860.0,110850.0,0.56902632]
[1747881584787,0.86402805,110860.0,110850.0,0.5509849]
[1747881585465,0.86402805,110860.0,110850.0,0.56000569]
[1747881586554,0.68362041,110860.0,110850.0,0.5690264]
[1747881587080,0.68362041,110860.0,110850.0,0.58807738]
[1747881587580,0.86402813,110860.0,110850.0,0.55199406]
[1747881587790,0.86402813,110860.0,110850.0,0.55945184]
[1747881588984,0.68362025,110860.0,110850.0,0.56847247]
[1747881589384,0.70166093,110860.0,110850.0,0.56847247]
[1747881589688,0.18040724,110870.0,110860.0,0.20746797]
[1747881589689,0.02705813,110870.0,110860.0,0.20746797]
[1747881589887,0.01803653,110880.0,110870.0,0.21646857]
[1747881590180,0.67825512,110880.0,110870.0,0.43125769]
[1747881590364,0.6512,110880.0,110870.0,0.78579854]
[1747881590521,0.6602181,110880.0,110870.0,0.79426564]
[1747881590907,0.66923637,110880.0,110870.0,0.79426564]
[1747881591458,0.6782548,110880.0,110870.0,0.80484952]
[1747881592192,0.6780188,110880.0,110870.0,0.80484952]
[1747881592751,0.85839487,110880.0,110870.0,0.35905098]
[1747881592951,0.86447644,110880.0,110870.0,0.01905098]
[1747881593207,1.25765343,110880.0,110870.0,0.0084671]
[1747881593451,1.47244255,110880.0,110870.0,0.0084671]
[1747881593656,1.25765343,110880.0,110870.0,0.0084671]
[1747881593829,0.20542794,110860.0,110850.0,0.00049806]
[1747881594042,0.47598794,110860.0,110850.0,0.00049806]
[1747881594402,0.46900808,110860.0,110850.0,0.00897097]
[1747881595158,0.46900808,110860.0,110850.0,0.00997097]
[1747881595323,0.48520808,110860.0,110850.0,0.00997097]
[1747881595900,0.48520808,110860.0,110850.0,0.00149806]
[1747881596506,0.66728051,110860.0,110850.0,0.00249806]
[1747881596744,0.57924165,110860.0,110850.0,0.00249806]
[1747881598862,0.57924165,110860.0,110850.0,0.02249806]
[1747881599088,0.59293887,110860.0,110850.0,0.02249806]
[1747881599523,0.61131906,110860.0,110850.0,0.02249806]
[1747881600236,0.97361887,110860.0,110850.0,0.02249806]
[1747881600455,0.32237887,110860.0,110850.0,0.02249806]
[1747881600615,0.8795853,110860.0,110850.0,0.02249806]
[1747881600813,0.85870797,110860.0,110850.0,0.43575331]
[1747881601069,0.69634028,110860.0,110850.0,0.4447741]
[1747881601264,0.86772835,110860.0,110850.0,0.22096427]
[1747881601448,0.86772835,110860.0,110850.0,0.23900585]
[1747881601449,0.67830025,110860.0,110850.0,0.23900585]
[1747881601649,0.68732063,110860.0,110850.0,0.57900585]
[1747881602173,0.68732063,110860.0,110850.0,0.57900593]
[1747881602516,0.67830025,110860.0,110850.0,0.58802656]
[1747881602880,0.67830025,110860.0,110850.0,0.80281568]
[1747881603099,0.68732063,110860.0,110850.0,0.79379505]
[1747881603677,0.68732063,110860.0,110850.0,0.57900593]
[1747881604653,0.67830025,110860.0,110850.0,0.58802656]
[1747881604852,0.67830025,110860.0,110850.0,0.80281568]
[1747881604853,0.68732063,110860.0,110850.0,0.80281568]
[1747881605298,0.68732063,110860.0,110850.0,0.79379505]
[1747881605546,0.68732063,110860.0,110850.0,0.80281576]
[1747881606123,0.68732063,110860.0,110850.0,0.58802664]
[1747881607477,0.18039144,110870.0,110850.0,0.56096355]
[1747881607696,0.2696432,110890.0,110870.0,0.54744844]
[1747881607934,0.02705293,110890.0,110880.0,0.19841228]
[1747881608148,0.59708824,110880.0,110870.0,0.53843]
[1747881608368,0.58807087,110880.0,110870.0,0.53843033]
[1747881608583,0.58807087,110880.0,110870.0,0.54744957]
[1747881608802,0.58807087,110880.0,110870.0,0.55646873]
[1747881609015,0.58807087,110880.0,110870.0,0.54744957]
[1747881609696,0.58807087,110880.0,110870.0,0.55646873]
[1747881609920,0.59635252,110880.0,110870.0,0.34]
[1747881610974,0.59635252,110880.0,110870.0,0.34901957]
[1747881611174,0.38464,110880.0,110870.0,0.55646865]
[1747881611392,0.41169512,110880.0,110870.0,0.77125777]
[1747881611591,0.40267653,110880.0,110870.0,0.77125777]
[1747881612221,0.40267661,110880.0,110870.0,0.77125777]
[1747881612636,0.39365818,110880.0,110870.0,0.77125777]
[1747881612997,0.004,110880.0,110870.0,1.09462131]
[1747881613225,0.004,110880.0,110870.0,1.10972131]
[1747881613452,0.2746,110880.0,110870.0,0.89493219]
[1747881613676,0.2726,110880.0,110870.0,0.89493219]
[1747881614054,0.2736,110880.0,110870.0,0.89493219]
[1747881614257,0.29865528,110880.0,110870.0,0.64700483]
[1747881614459,0.2896371,110880.0,110870.0,0.54744917]
[1747881615082,0.29865585,110880.0,110870.0,0.54744917]
[1747881615290,0.29865585,110880.0,110870.0,0.54844917]
[1747881615621,0.29765585,110880.0,110870.0,0.54844917]
[1747881615838,0.47803103,110880.0,110870.0,0.54944933]
[1747881616135,0.47803103,110880.0,110870.0,0.55846841]
[1747881616457,0.47803103,110880.0,110870.0,0.54944933]
[1747881616682,0.47803103,110880.0,110870.0,0.54043017]
[1747881616850,0.47803103,110880.0,110870.0,0.53141093]
[1747881617056,0.4690126,110880.0,110870.0,0.54043033]
[1747881617271,0.4690126,110880.0,110870.0,0.54944957]
[1747881617994,0.4854126,110880.0,110870.0,0.342]
[1747881618221,0.47639393,110880.0,110870.0,0.01045161]
[1747881619495,0.5704275,110880.0,110870.0,0.002]
[1747881620939,0.78521662,110880.0,110870.0,0.002]
[1747881621343,0.79521662,110880.0,110870.0,0.002]
[1747881621744,1.13521662,110880.0,110870.0,0.002]
[1747881621964,1.44403931,110880.0,110870.0,0.002]
[1747881622161,0.21484791,110860.0,110850.0,0.03241601]
[1747881622364,0.95900148,110860.0,110850.0,0.03241601]
[1747881623115,0.02706481,110840.0,110830.0,0.37863177]
[1747881623370,0.30664674,110840.0,110830.0,0.70960984]
[1747881623544,0.48404401,110840.0,110830.0,0.47677597]
[1747881623708,0.47502265,110840.0,110830.0,0.47677605]
[1747881623909,0.29762448,110840.0,110830.0,0.70960992]
[1747881624131,0.27056,110840.0,110830.0,0.72415077]
[1747881624396,0.27056,110840.0,110830.0,0.83338434]
[1747881624592,0.20896594,110860.0,110850.0,0.19846613]
[1747881624806,0.38858087,110850.0,110840.0,0.76779958]
[1747881625249,0.39760142,110850.0,110840.0,0.55301046]
[1747881625458,0.40662188,110850.0,110840.0,0.55301095]
[1747881625660,0.58704644,110850.0,110840.0,0.53847026]
[1747881626007,0.57802581,110850.0,110840.0,0.53947034]
[1747881626216,0.57802581,110850.0,110840.0,0.54849202]
[1747881626776,0.57802581,110850.0,110840.0,0.54949202]
[1747881627379,0.39760182,110850.0,110840.0,0.55851362]
[1747881627613,0.40662293,110850.0,110840.0,0.56753465]
[1747881627840,0.41564412,110850.0,110840.0,0.55851321]
[1747881628050,0.68624412,110850.0,110840.0,0.55851321]
[1747881628598,0.67722293,110850.0,110840.0,0.55851321]
[1747881628820,0.67722293,110850.0,110840.0,0.56753465]
[1747881630809,0.00049814,110860.0,110850.0,0.52944502]
[1747881631170,0.65069814,110860.0,110850.0,0.65606094]
[1747881631403,0.65069814,110860.0,110850.0,0.87085006]
[1747881632003,0.65169814,110860.0,110850.0,0.87085006]
[1747881632434,0.65169814,110860.0,110850.0,0.65606094]
[1747881632658,0.66973784,110860.0,110850.0,0.55650731]
[1747881632887,0.66071787,110860.0,110850.0,0.77129643]
[1747881633103,0.66973768,110860.0,110850.0,0.77129643]
[1747881633527,0.68777796,110860.0,110850.0,0.77129643]
[1747881633727,0.67875774,110860.0,110850.0,0.77129643]
[1747881634384,0.68777788,110860.0,110850.0,0.77129643]
[1747881636969,0.67875774,110860.0,110850.0,0.77129643]
[1747881637112,0.39913768,110860.0,110850.0,0.77129643]
[1747881637328,0.67875765,110860.0,110850.0,0.77129643]
[1747881637506,0.65169814,110860.0,110850.0,0.77129643]
[1747881637706,0.66071787,110860.0,110850.0,0.77129643]
[1747881638140,0.66071779,110860.0,110850.0,0.77129643]
[1747881639129,0.66071779,110860.0,110850.0,0.55650731]
[1747881639349,0.66071779,110860.0,110850.0,0.77129643]
[1747881639974,0.67875749,110860.0,110850.0,0.77129643]
[1747881640599,0.86664605,110860.0,110850.0,0.34]
[1747881640859,0.02706212,110850.0,110840.0,0.20749178]
[1747881641040,0.03608299,110850.0,110840.0,0.21651322]
[1747881641260,0.0451041,110850.0,110840.0,0.21651322]
[1747881641468,0.05258299,110850.0,110840.0,0.55651322]
[1747881641667,0.04356196,110850.0,110840.0,0.55651322]
[1747881641885,0.02706204,110850.0,110840.0,0.77130234]
[1747881642278,0.03608307,110850.0,110840.0,0.77130234]
[1747881642585,0.03608307,110850.0,110840.0,0.55651322]
[1747881644015,0.03443551,110850.0,110840.0,0.37443938]
[1747881644156,0.03443551,110850.0,110840.0,0.55486603]
[1747881644356,0.02541448,110850.0,110840.0,0.55486603]
[1747881644644,0.03443551,110850.0,110840.0,0.55486603]
[1747881645269,0.04345662,110850.0,110840.0,0.55486603]
[1747881645855,0.027067,110830.0,110820.0,0.1984393]
[1747881646072,0.66824442,110830.0,110820.0,0.33408358]
[1747881646295,0.67726692,110830.0,110820.0,0.33408358]
[1747881646558,0.01804638,110820.0,110810.0,0.19848326]
[1747881646744,0.02706961,110820.0,110810.0,0.54750788]
[1747881646948,0.03609308,110820.0,110810.0,0.20750788]
[1747881647090,0.02706961,110820.0,110810.0,0.21653176]
[1747881647313,0.02706961,110820.0,110810.0,0.55653176]
[1747881647672,0.216566,110820.0,110810.0,0.21653184]
[1747881647850,0.216566,110820.0,110810.0,0.56569048]
[1747881648016,0.02706961,110820.0,110810.0,0.22569048]
[1747881648437,0.02706961,110820.0,110810.0,0.56569048]
[1747881648890,0.18042399,110850.0,110820.0,0.52047283]
[1747881649102,0.01804117,110850.0,110840.0,0.42229395]
[1747881649307,0.69534394,110850.0,110840.0,0.41327251]
[1747881649507,0.69534443,110850.0,110840.0,0.53848372]
[1747881649732,0.69534427,110850.0,110840.0,0.54750524]
[1747881649970,0.0180454,110830.0,110820.0,0.18949639]
[1747881650167,0.19851994,110820.0,110810.0,0.00013476]
[1747881650381,0.60149994,110820.0,110810.0,0.00915921]
[1747881650581,0.60149994,110820.0,110810.0,0.34915921]
[1747881650729,0.60149994,110820.0,110810.0,0.35818358]
[1747881650929,0.60149994,110820.0,110810.0,0.54769691]
[1747881651128,0.60149994,110820.0,110810.0,0.55672087]
[1747881651339,0.60149994,110820.0,110810.0,0.54769691]
[1747881651536,0.60149994,110820.0,110810.0,0.00013476]
[1747881653924,1.08521351,110820.0,110810.0,0.00013476]
[1747881656123,1.08621351,110820.0,110810.0,0.00013476]
[1747881656993,1.08721351,110820.0,110810.0,0.00013476]
[1747881658276,1.30200263,110820.0,110810.0,0.00013476]
[1747881658548,1.96082532,110820.0,110810.0,0.00013476]
[1747881659176,1.96082532,110820.0,110750.0,0.4082]
[1747881659177,0.19862708,110760.0,110750.0,0.4082]
[1747881659379,0.19864518,110750.0,110740.0,0.18957961]
[1747881659591,0.20769295,110740.0,110730.0,0.42565463]
[1747881659791,0.47837295,110740.0,110730.0,0.42580309]
[1747881660032,0.46934328,110740.0,110730.0,0.42580309]
[1747881660180,0.48534328,110740.0,110730.0,0.42580309]
[1747881660887,0.46031337,110740.0,110730.0,0.42580309]
[1747881661104,0.46031337,110740.0,110730.0,0.42780309]
[1747881661414,0.47591337,110740.0,110730.0,0.42780309]
[1747881661553,0.47591337,110740.0,110730.0,0.42580309]
[1747881661554,0.63559697,110740.0,110730.0,0.42580309]
[1747881661754,0.56994694,110740.0,110730.0,0.42580309]
[1747881662000,0.56994694,110740.0,110730.0,0.42780309]
[1747881662224,1.14473606,110740.0,110730.0,0.42780309]
[1747881662395,1.34952518,110740.0,110730.0,0.42580309]
[1747881662595,1.34952518,110740.0,110730.0,0.42680309]
[1747881662796,6.4980996,110740.0,110730.0,0.4080282]
[1747881662964,6.81954815,110740.0,110730.0,0.3914282]
[1747881663171,6.30475903,110740.0,110730.0,0.3924282]
[1747881663382,1.24731048,110740.0,110730.0,0.3924282]
[1747881663592,1.51245606,110740.0,110730.0,0.3914282]
[1747881663900,1.52699691,110740.0,110730.0,0.3914282]
[1747881664108,7.12515124,110740.0,110730.0,0.3934282]
[1747881664293,6.395573,110740.0,110730.0,0.3934282]
[1747881664499,6.69539569,110740.0,110730.0,0.3914282]
[1747881664707,6.58682127,110740.0,110730.0,0.3914282]
[1747881664922,1.53145606,110740.0,110730.0,0.3934282]
[1747881665127,1.53165606,110740.0,110730.0,0.3934282]
[1747881665781,1.56302127,110740.0,110730.0,0.3954282]
[1747881666231,1.57056212,110740.0,110730.0,0.3934282]
[1747881666426,1.88638481,110740.0,110730.0,0.3954282]
[1747881666908,1.82675802,110740.0,110730.0,0.3954282]
[1747881667105,6.87675802,110740.0,110730.0,0.3954282]
[1747881668460,6.6619689,110740.0,110730.0,0.37425338]
[1747881668676,6.78272445,110740.0,110730.0,0.30148238]
[1747881668889,6.78272445,110740.0,110720.0,0.0006173]
[1747881668890,0.62228391,110730.0,110720.0,0.0006173]
[1747881669144,6.47098346,110730.0,110720.0,0.00111471]
[1747881669369,0.19880657,110660.0,110650.0,0.0161]
[1747881669577,1.34160014,110660.0,110650.0,0.0161]
[1747881670842,1.34209723,110660.0,110650.0,0.0161]
[1747881671047,0.2078992,110630.0,110620.0,6e-05]
[1747881671279,0.66787856,110630.0,110620.0,0.41372807]
[1747881671462,0.86673904,110630.0,110620.0,0.41372807]
[1747881671794,0.86673904,110630.0,110620.0,0.04327961]
[1747881672241,0.85770088,110630.0,110620.0,0.01616]
[1747881672471,0.19886088,110630.0,110620.0,0.01616]
[1747881672697,0.87146088,110630.0,110620.0,0.01616]
[1747881672915,0.19886088,110630.0,110620.0,0.01616]
[1747881673158,0.0271161,110630.0,110620.0,0.22407833]
[1747881673359,0.20789888,110630.0,110620.0,0.01616]
[1747881673560,0.87262064,110630.0,110620.0,0.02116]
[1747881674018,0.87162064,110630.0,110620.0,0.01616]
[1747881674249,0.87362064,110630.0,110620.0,0.210999]
[1747881674701,0.85454278,110630.0,110620.0,0.02116]
[1747881675343,0.94857635,110630.0,110620.0,0.02116]
[1747881675553,0.94857635,110630.0,110620.0,0.01616]
[1747881675554,0.94757635,110630.0,110620.0,0.01616]
[1747881675976,0.94957635,110630.0,110620.0,0.01616]
[1747881676665,0.94857635,110630.0,110620.0,0.01716]
[1747881676881,0.85466278,110630.0,110620.0,0.01716]
[1747881677068,0.85566278,110630.0,110620.0,0.01716]
[1747881677256,0.85466278,110630.0,110620.0,0.01616]
[1747881677427,0.85566278,110630.0,110620.0,0.01716]
[1747881679233,0.94969635,110630.0,110620.0,0.03716]
[1747881679439,1.33486428,110630.0,110620.0,0.02106]
[1747881679875,1.68486428,110630.0,110620.0,0.02106]
[1747881680544,1.68386428,110630.0,110620.0,0.02106]
[1747881680985,1.68698428,110630.0,110620.0,0.02006]
[1747881681204,1.02198428,110630.0,110620.0,0.02006]
[1747881681453,1.60095071,110630.0,110620.0,0.02006]
[1747881681865,1.61095071,110630.0,110620.0,0.02006]
[1747881682933,1.60095071,110630.0,110620.0,0.02006]
[1747881683151,1.61095071,110630.0,110620.0,0.02006]
[1747881683375,1.59107071,110630.0,110620.0,0.02006]
[1747881683699,1.40396992,110630.0,110620.0,0.02006]
[1747881683931,1.30993635,110630.0,110620.0,0.02006]
[1747881685056,1.60107071,110630.0,110620.0,0.02006]
[1747881685567,1.30993635,110630.0,110620.0,0.02006]
[1747881685796,1.60107071,110630.0,110620.0,0.02006]
[1747881686879,0.63681635,110630.0,110620.0,0.03636]
[1747881687086,1.60115071,110630.0,110620.0,0.03636]
[1747881687321,1.31001635,110630.0,110620.0,0.03636]
[1747881688016,1.31005635,110630.0,110620.0,0.03636]
[1747881688564,1.31005635,110630.0,110620.0,0.02006]
[1747881688778,1.31005635,110630.0,110620.0,0.03626]
[1747881689022,1.30005635,110630.0,110620.0,0.03626]
[1747881689596,1.69522428,110630.0,110620.0,0.02006]
[1747881690792,1.60119071,110630.0,110620.0,0.02006]
[1747881692273,0.28681635,110630.0,110620.0,0.03556]
[1747881692487,0.28681635,110630.0,110620.0,0.243478]
[1747881692488,0.41408,110630.0,110620.0,0.243478]
[1747881692688,0.012,110630.0,110620.0,0.87461236]
[1747881692912,1.0638,110650.0,110640.0,0.22338042]
[1747881693117,1.0638,110650.0,110640.0,0.56338042]
[1747881693307,1.0638,110650.0,110640.0,0.3555]
[1747881693494,1.0638,110650.0,110640.0,0.56338042]
[1747881694057,1.0648,110650.0,110640.0,0.57038042]
[1747881694564,1.0658,110650.0,110640.0,0.23138042]
[1747881694916,1.07483677,110650.0,110640.0,0.23138042]
[1747881695126,1.0658,110650.0,110640.0,0.23138042]
[1747881695271,1.07483677,110650.0,110640.0,0.23138042]
[1747881695504,1.0658,110650.0,110640.0,0.23138042]
[1747881695704,1.07483677,110650.0,110640.0,0.23138042]
[1747881696354,1.0658,110650.0,110640.0,0.23138042]
[1747881696585,1.07483677,110650.0,110640.0,0.23138042]
[1747881696828,1.09291071,110650.0,110640.0,0.23138042]
[1747881697070,1.07471677,110650.0,110640.0,0.23138042]
[1747881697305,0.39252,110650.0,110640.0,0.57138042]
[1747881697538,1.06568,110650.0,110640.0,0.9710892]
[1747881697743,0.66368,110650.0,110640.0,0.9710892]
[1747881698168,0.002,110650.0,110640.0,0.9710892]
[1747881698326,0.00049709,110660.0,110650.0,0.54786163]
[1747881698536,0.00049709,110660.0,110650.0,0.94952956]
[1747881700023,0.0105332,110660.0,110650.0,0.57536163]
[1747881700192,0.20030366,110660.0,110650.0,0.0275]
[1747881700415,0.36641995,110660.0,110650.0,0.0165]
[1747881700739,0.36741995,110660.0,110650.0,0.0235]
[1747881700876,0.36741995,110660.0,110650.0,0.0305]
[1747881701076,0.36841995,110660.0,110650.0,0.023]
[1747881701307,0.36741995,110660.0,110650.0,0.009]
[1747881701508,0.18978745,110650.0,110640.0,0.2]
[1747881701681,0.95690102,110650.0,110640.0,0.2]
[1747881702404,0.6912741,110650.0,110640.0,0.42328025]
[1747881702605,0.70934821,110650.0,110640.0,0.41424267]
[1747881702814,0.88106155,110650.0,110640.0,0.41424267]
[1747881703008,0.88106155,110650.0,110640.0,0.42328042]
[1747881703009,0.68223693,110650.0,110640.0,0.42328042]
[1747881703218,0.70031152,110650.0,110640.0,0.4232805]
[1747881703544,0.6912741,110650.0,110640.0,0.43231825]
[1747881703690,0.68157402,110650.0,110640.0,0.43231825]
[1747881703890,0.69061128,110650.0,110640.0,0.43231825]
[1747881704109,0.01807362,110650.0,110640.0,0.43251767]
[1747881704390,0.6742,110650.0,110640.0,1.05557621]
[1747881704902,0.87302454,110650.0,110640.0,0.5656]
[1747881705045,0.19982454,110650.0,110640.0,0.2216]
[1747881705254,0.96705811,110650.0,110640.0,0.206]
[1747881705692,1.06109168,110650.0,110640.0,0.206]
[1747881705911,0.96705811,110650.0,110640.0,0.206]
[1747881706129,1.26719247,110650.0,110640.0,0.2]
[1747881706337,1.62573332,110650.0,110640.0,0.2]
[1747881706482,1.62573332,110650.0,110640.0,0.207]
[1747881706483,6.68673332,110650.0,110640.0,0.207]
[1747881706678,1.65062005,110650.0,110640.0,0.212]
[1747881706924,1.74365362,110650.0,110640.0,0.2]
[1747881707192,7.37478798,110650.0,110640.0,0.2]
[1747881707396,0.85340133,110630.0,110620.0,0.02006]
[1747881707601,0.22343729,110610.0,110600.0,0.057]
[1747881707807,1.35623023,110610.0,110600.0,0.057]
[1747881708007,1.69623023,110610.0,110600.0,0.057]
[1747881708252,1.68623023,110610.0,110600.0,0.057]
[1747881708456,6.73623023,110610.0,110600.0,0.057]
[1747881708990,6.73672701,110610.0,110600.0,0.057]
[1747881709190,6.07352701,110610.0,110600.0,0.057]
[1747881709365,1.32670679,110610.0,110600.0,0.057]
[1747881709543,0.63342679,110610.0,110600.0,0.057]
[1747881709713,1.31670679,110610.0,110600.0,0.057]
[1747881709917,1.32670679,110610.0,110600.0,0.057]
[1747881710143,1.31670679,110610.0,110600.0,0.057]
[1747881710346,1.30678679,110610.0,110600.0,0.057]